bitfinex/quotes_BTCUSD_20250916
["timestamp","ask_amount","ask_price","bid_price","bid_amount"]
[1758023169942,0.0021,115530.0,115520.0,0.82404783]
[1758023170504,0.02811864,115530.0,115520.0,0.82404783]
[1758023170705,0.02711864,115530.0,115520.0,0.82404783]
[1758023171018,0.02711864,115530.0,115520.0,0.82604783]
[1758023171791,0.02611864,115530.0,115520.0,0.82604783]
[1758023172150,0.02611864,115530.0,115520.0,0.82704783]
[1758023177087,0.02611864,115530.0,115520.0,0.4735092]
[1758023177292,0.02611864,115530.0,115520.0,0.82704783]
[1758023179155,0.02611864,115530.0,115520.0,0.82998783]
[1758023180561,0.02611864,115530.0,115520.0,1.18352646]
[1758023180779,0.0001,115530.0,115520.0,1.18352646]
[1758023180988,0.0001,115530.0,115520.0,0.82998783]
[1758023181752,0.0001,115530.0,115520.0,0.82994783]
[1758023182169,0.0001,115530.0,115520.0,1.23236783]
[1758023184641,0.0001,115530.0,115520.0,1.29753853]
[1758023186503,0.04943989,115540.0,115530.0,0.52665383]
[1758023186699,0.04943989,115540.0,115530.0,0.75733284]
[1758023187022,0.22555011,115540.0,115530.0,0.25959421]
[1758023187249,0.57908874,115540.0,115530.0,0.3173152]
[1758023187454,0.57918874,115540.0,115530.0,0.3173152]
[1758023188103,0.57918874,115540.0,115530.0,0.3183152]
[1758023188446,0.57918874,115540.0,115530.0,0.3173152]
[1758023188665,0.22665011,115540.0,115530.0,0.3173152]
[1758023188904,0.22765011,115540.0,115530.0,0.3173152]
[1758023195278,0.58118874,115540.0,115530.0,0.3173152]
[1758023195484,0.22765011,115540.0,115530.0,0.3173152]
[1758023195642,0.58118874,115540.0,115530.0,0.3173152]
[1758023196454,0.22765011,115540.0,115530.0,0.3173152]
[1758023196689,0.58118874,115540.0,115530.0,0.3173152]
[1758023198123,0.22765011,115540.0,115530.0,0.3173152]
[1758023203390,0.22765011,115540.0,115530.0,0.1731152]
[1758023203585,0.22765011,115540.0,115530.0,0.3173152]
[1758023208083,0.22765011,115540.0,115530.0,0.1731152]
[1758023208285,0.58118874,115540.0,115530.0,0.3172752]
[1758023210567,0.66770516,115540.0,115530.0,0.3172752]
[1758023212000,0.31416653,115540.0,115530.0,0.3172752]
[1758023212228,0.58118874,115540.0,115530.0,0.3172752]
[1758023217429,0.58317874,115540.0,115530.0,0.3172752]
[1758023218285,0.58317874,115540.0,115530.0,0.3838352]
[1758023219560,0.22964011,115540.0,115530.0,0.3858652]
[1758023219772,0.58317874,115540.0,115530.0,0.3858652]
[1758023221961,0.22964011,115540.0,115530.0,0.3858652]
[1758023222177,0.41007852,115540.0,115530.0,0.3858652]
[1758023222393,0.05352989,115540.0,115530.0,0.3858652]
[1758023222627,0.38013852,115540.0,115530.0,0.3858652]
[1758023222845,0.02659989,115540.0,115530.0,0.3887952]
[1758023223062,0.02659989,115540.0,115530.0,1.18477147]
[1758023223272,0.0021,115540.0,115530.0,1.18477147]
[1758023223997,0.0021,115540.0,115530.0,0.86176941]
[1758023224583,0.0011,115540.0,115530.0,0.86186941]
[1758023225203,0.0001,115540.0,115530.0,0.86186941]
[1758023225615,0.0001,115540.0,115530.0,0.86286941]
[1758023226062,0.0001,115540.0,115530.0,1.26286941]
[1758023226266,0.0001,115540.0,115530.0,1.62504246]
[1758023226949,0.0001,115540.0,115530.0,1.27150383]
[1758023227154,0.0001,115540.0,115530.0,1.62504246]
[1758023227583,0.0001,115540.0,115530.0,1.47224804]
[1758023227797,0.0001,115540.0,115530.0,1.61636804]
[1758023227969,0.0001,115540.0,115530.0,1.25351716]
[1758023228596,0.00022274,115550.0,115540.0,0.17310022]
[1758023228808,0.00022274,115550.0,115540.0,0.57365371]
[1758023229121,0.00022274,115550.0,115540.0,0.58126371]
[1758023229347,0.00022274,115550.0,115540.0,0.98126371]
[1758023229758,0.00012274,115550.0,115540.0,1.12895168]
[1758023230381,0.00112274,115550.0,115540.0,1.13295168]
[1758023230737,0.00112274,115550.0,115540.0,0.98883168]
[1758023230939,0.00112274,115550.0,115540.0,1.13405168]
[1758023233701,0.00112274,115550.0,115540.0,1.40395168]
[1758023244851,0.00112274,115550.0,115540.0,1.25983168]
[1758023245244,0.00112274,115550.0,115540.0,1.40149168]
[1758023245595,0.00112274,115550.0,115540.0,1.40391168]
[1758023246008,0.00112274,115550.0,115540.0,1.25983168]
[1758023246208,0.00112274,115550.0,115540.0,1.40391168]
[1758023247037,0.00112274,115550.0,115540.0,1.25983168]
[1758023247238,0.00112274,115550.0,115540.0,1.40391168]
[1758023251119,0.00112274,115550.0,115540.0,1.25983168]
[1758023251333,0.00112274,115550.0,115540.0,1.0842972]
[1758023251738,0.00112274,115550.0,115540.0,0.8143972]
[1758023252181,0.00112274,115550.0,115540.0,0.8175172]
[1758023252406,0.02999274,115550.0,115540.0,0.26467923]
[1758023252626,0.34406722,115550.0,115540.0,0.26467923]
[1758023252839,0.34406722,115550.0,115540.0,0.40875923]
[1758023253697,0.35272295,115550.0,115540.0,0.26467923]
[1758023253923,0.35272295,115550.0,115540.0,0.40875923]
[1758023254144,0.34406722,115550.0,115540.0,0.40875923]
[1758023254363,0.34416722,115550.0,115540.0,0.40875923]
[1758023254986,0.51725246,115550.0,115540.0,0.40875923]
[1758023256947,0.52582882,115550.0,115540.0,0.40875923]
[1758023257552,0.21175434,115550.0,115540.0,0.32228022]
[1758023257718,0.52582882,115550.0,115540.0,0.32228022]
[1758023258206,0.52482882,115550.0,115540.0,0.31728022]
[1758023258492,0.52482882,115550.0,115540.0,0.31928022]
[1758023258927,0.52482882,115550.0,115540.0,0.31728022]
[1758023259149,0.52482882,115550.0,115540.0,0.31928022]
[1758023259382,0.35174358,115550.0,115540.0,0.32028022]
[1758023259820,0.52482882,115550.0,115540.0,0.32028022]
[1758023260230,0.52482882,115550.0,115540.0,0.31928022]
[1758023260451,0.52482882,115550.0,115540.0,0.32028022]
[1758023261579,0.35174358,115550.0,115540.0,0.32028022]
[1758023262473,0.00022274,115550.0,115540.0,0.32537022]
[1758023262701,0.00022274,115550.0,115540.0,0.32224022]
[1758023262937,0.02629274,115550.0,115540.0,0.32224022]
[1758023265671,0.02925274,115550.0,115540.0,0.32224022]
[1758023266535,0.02629274,115550.0,115540.0,0.32224022]
[1758023267153,0.00022274,115550.0,115540.0,0.41184923]
[1758023267566,0.00022274,115550.0,115540.0,0.41426923]
[1758023267822,0.00022274,115550.0,115540.0,0.41184923]
[1758023268007,0.00022274,115550.0,115540.0,0.40871923]
[1758023268442,0.00221274,115550.0,115540.0,0.40871923]
[1758023269293,0.5471352,115560.0,115550.0,0.17308524]
[1758023269515,0.54917248,115560.0,115550.0,0.17308524]
[1758023270276,0.54927248,115560.0,115550.0,0.17308524]
[1758023270485,0.37620219,115560.0,115550.0,0.17308524]
[1758023270894,0.88927245,115560.0,115550.0,0.17308524]
[1758023271305,0.88927245,115560.0,115550.0,0.17408524]
[1758023272041,0.57519797,115560.0,115550.0,0.17408524]
[1758023272250,0.71620219,115560.0,115550.0,0.17408524]
[1758023272688,0.88927245,115560.0,115550.0,0.17408524]
[1758023273272,0.88927245,115560.0,115550.0,0.31816524]
[1758023276499,0.88927245,115560.0,115550.0,0.17408524]
[1758023276704,0.88927245,115560.0,115550.0,0.31816524]
[1758023278103,0.71620219,115560.0,115550.0,0.32030524]
[1758023278314,0.88927245,115560.0,115550.0,0.32030524]
[1758023278980,0.88927245,115560.0,115550.0,0.31816524]
[1758023280562,0.71620219,115560.0,115550.0,0.32030524]
[1758023280977,0.88927245,115560.0,115550.0,0.31816524]
[1758023282645,0.88927245,115560.0,115550.0,0.14508]
[1758023282951,0.88927245,115560.0,115550.0,0.31816524]
[1758023288110,0.37508771,115560.0,115550.0,0.32031524]
[1758023288316,0.68717219,115560.0,115550.0,0.32337524]
[1758023288959,0.71091219,115560.0,115550.0,0.32337524]
[1758023289574,0.88398245,115560.0,115550.0,0.32337524]
[1758023289776,0.92337147,115560.0,115550.0,0.32337524]
[1758023291075,0.92541147,115560.0,115550.0,0.32337524]
[1758023291290,0.36431051,115560.0,115550.0,0.32337524]
[1758023291491,0.36431051,115560.0,115550.0,0.76573775]
[1758023291699,0.36431051,115560.0,115550.0,0.41227425]
[1758023291900,0.71777401,115560.0,115550.0,0.40985425]
[1758023293340,0.71777401,115560.0,115550.0,0.41227425]
[1758023293855,0.71777401,115560.0,115550.0,0.47879425]
[1758023294576,0.91976427,115560.0,115550.0,0.32708425]
[1758023294800,0.39009051,115560.0,115550.0,0.47327425]
[1758023295014,0.39876526,115560.0,115550.0,0.47327425]
[1758023295229,0.72806553,115560.0,115550.0,0.47327425]
[1758023295658,0.72806553,115560.0,115550.0,0.32923425]
[1758023295878,1.25773929,115560.0,115550.0,0.32708425]
[1758023296106,1.25773929,115560.0,115550.0,0.29963901]
[1758023296323,1.25773929,115560.0,115550.0,0.53735826]
[1758023296550,1.28375125,115560.0,115550.0,0.53735826]
[1758023297200,1.28375125,115560.0,115550.0,0.38624524]
[1758023297426,1.28375125,115560.0,115550.0,0.06752]
[1758023297605,1.28375125,115560.0,115550.0,0.2132]
[1758023301147,0.93028775,115560.0,115550.0,0.2132]
[1758023301927,1.28375125,115560.0,115550.0,0.2132]
[1758023302528,1.28375125,115560.0,115550.0,0.21308]
[1758023302920,1.34315779,115560.0,115550.0,0.21308]
[1758023303987,1.28375125,115560.0,115550.0,0.21308]
[1758023304394,1.28375125,115560.0,115550.0,0.06752]
[1758023304599,1.28375125,115560.0,115550.0,0.001]
[1758023304813,1.28375125,115560.0,115550.0,0.14652]
[1758023307911,1.28375125,115560.0,115550.0,0.001]
[1758023308133,1.37026767,115560.0,115550.0,0.001]
[1758023308767,1.37326767,115560.0,115550.0,0.001]
[1758023309228,1.37326767,115560.0,115540.0,0.14548]
[1758023309229,0.51308524,115550.0,115540.0,0.14548]
[1758023309455,0.89342874,115550.0,115540.0,0.14548]
[1758023309674,0.89546874,115550.0,115540.0,0.14548]
[1758023309866,0.96437001,115550.0,115540.0,0.14548]
[1758023310186,0.99038761,115550.0,115540.0,0.14548]
[1758023310622,0.99648761,115550.0,115540.0,0.14648]
[1758023319682,0.92758634,115550.0,115540.0,0.14648]
[1758023322319,0.57412284,115550.0,115540.0,0.14648]
[1758023322480,0.92758634,115550.0,115540.0,0.14648]
[1758023323466,0.54520284,115550.0,115540.0,0.32474022]
[1758023323667,0.89866634,115550.0,115540.0,0.32474022]
[1758023323901,0.54520284,115550.0,115540.0,0.32716022]
[1758023324162,0.3721176,115550.0,115540.0,0.68062372]
[1758023324441,0.54520284,115550.0,115540.0,0.32716022]
[1758023324898,0.89866634,115550.0,115540.0,0.32716022]
[1758023326740,0.7255811,115550.0,115540.0,0.32716022]
[1758023326960,0.3721176,115550.0,115540.0,0.32474022]
[1758023327162,0.3721176,115550.0,115540.0,0.68062372]
[1758023327398,0.3721176,115550.0,115540.0,0.32716022]
[1758023327614,0.3721176,115550.0,115540.0,0.68062372]
[1758023327816,0.3691176,115550.0,115540.0,0.68062372]
[1758023328070,0.3661176,115550.0,115540.0,0.67962372]
[1758023328290,0.3671176,115550.0,115540.0,0.67962372]
[1758023328493,0.3681176,115550.0,115540.0,0.67962372]
[1758023330474,0.3681176,115550.0,115540.0,0.32616022]
[1758023332880,0.3681176,115550.0,115540.0,0.18068022]
[1758023333116,0.3681176,115550.0,115540.0,0.32592022]
[1758023333725,0.3681176,115550.0,115540.0,0.18068022]
[1758023334278,0.3681176,115550.0,115540.0,0.32588022]
[1758023339664,0.3681176,115550.0,115540.0,0.67934372]
[1758023339881,0.3681176,115550.0,115540.0,0.76582273]
[1758023340311,0.3681176,115550.0,115540.0,0.62062273]
[1758023340535,0.54331284,115550.0,115540.0,0.26173923]
[1758023340781,0.89995634,115550.0,115540.0,0.08647901]
[1758023340997,0.92476634,115550.0,115540.0,0.40473923]
[1758023341842,0.92476634,115550.0,115540.0,0.31826022]
[1758023342099,0.57130284,115550.0,115540.0,0.31826022]
[1758023342328,0.92476634,115550.0,115540.0,0.1452]
[1758023342747,0.92476634,115550.0,115540.0,0.31830022]
[1758023344221,0.57130284,115550.0,115530.0,0.23973407]
[1758023344545,0.99273343,115550.0,115540.0,0.31826022]
[1758023344968,0.92476634,115550.0,115540.0,0.14516]
[1758023345181,0.92276634,115550.0,115540.0,0.14536]
[1758023345617,0.92476634,115550.0,115540.0,0.14536]
[1758023345834,0.17310022,115540.0,115530.0,0.2397352]
[1758023346050,0.52864372,115540.0,115530.0,0.3850952]
[1758023346258,0.20202022,115540.0,115530.0,0.3850952]
[1758023346677,0.22803775,115540.0,115530.0,0.3850952]
[1758023348166,0.22803775,115540.0,115530.0,0.3860952]
[1758023349052,0.22803775,115540.0,115530.0,0.3850952]
[1758023349651,0.22903775,115540.0,115530.0,0.3850952]
[1758023349954,0.22580775,115540.0,115530.0,0.3871152]
[1758023350588,0.22680775,115540.0,115530.0,0.3871152]
[1758023350801,0.22580775,115540.0,115530.0,0.3871152]
[1758023350956,0.22480775,115540.0,115530.0,0.3871152]
[1758023351186,0.22580775,115540.0,115530.0,0.3871152]
[1758023351574,0.22680775,115540.0,115530.0,0.3871152]
[1758023353144,0.22680775,115540.0,115530.0,0.79338989]
[1758023353145,0.02811753,115540.0,115530.0,0.79338989]
[1758023354027,0.02611753,115540.0,115530.0,0.79338989]
[1758023354458,0.02811753,115540.0,115530.0,0.79338989]
[1758023354660,0.02711753,115540.0,115530.0,0.79338989]
[1758023354862,0.02611753,115540.0,115530.0,0.79338989]
[1758023355095,0.02611753,115540.0,115530.0,0.79438989]
[1758023355756,0.02611753,115540.0,115530.0,0.64660989]
[1758023355982,0.02611753,115540.0,115530.0,0.79180989]
[1758023357171,0.19921775,115540.0,115530.0,0.79180989]
[1758023357393,0.19921775,115540.0,115530.0,0.47754421]
[1758023357599,0.22803775,115540.0,115530.0,0.47443421]
[1758023357799,0.22803775,115540.0,115530.0,0.78869989]
[1758023358031,0.22480775,115540.0,115530.0,0.3879152]
[1758023358998,0.22480775,115540.0,115530.0,0.3869152]
[1758023359258,0.04962753,115540.0,115530.0,0.3869152]
[1758023359476,0.02711753,115540.0,115530.0,0.3900252]
[1758023359879,0.02711753,115540.0,115530.0,0.70429088]
[1758023360114,0.03553525,115540.0,115530.0,0.70429088]
[1758023360491,0.03653525,115540.0,115530.0,0.70429088]
[1758023360690,0.23522547,115540.0,115530.0,0.55602088]
[1758023360970,0.22680775,115540.0,115530.0,0.70114088]
[1758023361205,0.22580775,115540.0,115530.0,0.70114088]
[1758023361610,0.22680775,115540.0,115530.0,0.70114088]
[1758023362281,0.05370753,115540.0,115530.0,0.70425088]
[1758023362483,0.06212525,115540.0,115530.0,0.70425088]
[1758023362683,0.06212525,115540.0,115530.0,0.70114088]
[1758023362859,0.23522547,115540.0,115530.0,0.70114088]
[1758023363048,0.22680775,115540.0,115530.0,0.70114088]
[1758023363821,0.05370753,115540.0,115530.0,0.70114088]
[1758023364024,0.06004525,115540.0,115530.0,0.70425088]
[1758023366636,0.03653525,115540.0,115530.0,0.70425088]
[1758023366845,0.02811753,115540.0,115530.0,0.79314989]
[1758023367730,0.02711753,115540.0,115530.0,0.79314989]
[1758023367955,0.02711753,115540.0,115530.0,0.64802989]
[1758023368197,0.02611753,115540.0,115530.0,0.79064989]
[1758023369571,0.02611753,115540.0,115530.0,0.47638421]
[1758023369793,0.05493753,115540.0,115530.0,0.47327421]
[1758023370019,0.05493753,115540.0,115530.0,0.32823421]
[1758023370242,0.05170753,115540.0,115530.0,0.47327421]
[1758023371810,0.22480775,115540.0,115530.0,0.47319421]
[1758023372269,0.22480775,115540.0,115530.0,0.32823421]
[1758023372596,0.22803775,115540.0,115530.0,0.47117421]
[1758023372963,0.22803775,115540.0,115530.0,0.47319421]
[1758023373229,0.22803775,115540.0,115530.0,0.32823421]
[1758023373490,0.31455417,115540.0,115530.0,0.47117421]
[1758023374745,0.31555417,115540.0,115530.0,0.47117421]
[1758023374939,0.22903775,115540.0,115530.0,0.47117421]
[1758023375062,0.23003775,115540.0,115530.0,0.47117421]
[1758023376380,0.23003775,115540.0,115530.0,0.3846952]
[1758023377043,0.23003775,115540.0,115530.0,0.3868252]
[1758023379967,0.23003775,115540.0,115530.0,0.3846952]
[1758023380183,0.23003775,115540.0,115530.0,0.3868252]
[1758023380610,0.23003775,115540.0,115530.0,0.2397352]
[1758023380782,0.23003775,115540.0,115530.0,0.3846152]
[1758023381221,0.31655417,115540.0,115530.0,0.3846152]
[1758023381375,0.31655417,115540.0,115530.0,0.06662]
[1758023381580,0.31655417,115540.0,115530.0,0.21146]
[1758023381774,0.31655417,115540.0,115530.0,0.3845752]
[1758023382956,0.23003775,115540.0,115530.0,0.3845752]
[1758023384188,0.88430343,115540.0,115530.0,0.21136]
[1758023384390,0.88430343,115540.0,115530.0,0.14484]
[1758023385872,0.1731152,115530.0,115520.0,0.17323019]
[1758023386076,0.2018852,115530.0,115520.0,0.31803019]
[1758023387006,0.22800653,115530.0,115520.0,0.1449]
[1758023387224,0.31452295,115530.0,115520.0,0.1449]
[1758023388158,0.31452295,115530.0,115520.0,0.0001]
[1758023388383,0.96878863,115530.0,115520.0,0.0001]
[1758023388608,0.96878863,115530.0,115520.0,0.14486]
[1758023389088,0.96878863,115530.0,115520.0,0.0001]
[1758023389311,0.96878863,115530.0,115520.0,0.1448]
[1758023390032,0.97378863,115530.0,115520.0,0.1448]
[1758023395110,0.65952295,115530.0,115520.0,0.1448]
[1758023395292,0.97378863,115530.0,115520.0,0.1448]
[1758023401718,0.51313019,115520.0,115510.0,0.2115374]
[1758023401937,0.94165229,115520.0,115510.0,0.1449774]
[1758023402133,0.94372229,115520.0,115510.0,0.1449774]
[1758023402538,0.94372229,115520.0,115510.0,0.1469474]
[1758023402778,0.51327745,115520.0,115510.0,0.32324258]
[1758023403035,0.53930217,115520.0,115510.0,0.32324258]
[1758023403230,0.54030217,115520.0,115510.0,0.32566258]
[1758023403442,0.54130217,115520.0,115510.0,0.32566258]
[1758023404292,0.36817198,115520.0,115510.0,0.32566258]
[1758023404498,0.54130217,115520.0,115510.0,0.32566258]
[1758023405133,0.36817198,115520.0,115510.0,0.32566258]
[1758023405358,0.54130217,115520.0,115510.0,0.32566258]
[1758023405888,0.36817198,115520.0,115510.0,0.32566258]
[1758023406092,0.54130217,115520.0,115510.0,0.32566258]
[1758023409813,0.36817198,115520.0,115510.0,0.32566258]
[1758023410490,0.54130217,115520.0,115510.0,0.32566258]
[1758023410928,0.36817198,115520.0,115510.0,0.32566258]
[1758023411152,0.57139958,115520.0,115510.0,0.32566258]
[1758023411355,0.54130217,115520.0,115510.0,0.32566258]
[1758023411763,0.54130217,115520.0,115510.0,0.67933028]
[1758023412433,0.36817198,115520.0,115510.0,0.76580929]
[1758023413163,0.36817198,115520.0,115510.0,0.76568929]
[1758023415539,0.59774733,115520.0,115510.0,0.41198159]
[1758023416179,0.59774733,115520.0,115510.0,0.26742159]
[1758023416377,0.59774733,115520.0,115510.0,0.41198159]
[1758023416809,0.95141503,115520.0,115510.0,0.41198159]
[1758023417368,0.59774733,115520.0,115510.0,0.41198159]
[1758023417783,0.59774733,115520.0,115510.0,0.40444159]
[1758023418675,0.42461714,115520.0,115510.0,0.40444159]
[1758023418849,0.59774733,115520.0,115510.0,0.40444159]
[1758023419246,0.42461714,115520.0,115510.0,0.40444159]
[1758023419858,0.36817198,115520.0,115510.0,0.75810929]
[1758023421643,0.54130217,115520.0,115510.0,0.75810929]
[1758023423118,0.36817198,115520.0,115510.0,0.75810929]
[1758023424759,0.54130217,115520.0,115510.0,0.75810929]
[1758023427728,0.36717198,115520.0,115510.0,0.75810929]
[1758023428151,0.54030217,115520.0,115510.0,0.61354929]
[1758023428358,0.54030217,115520.0,115510.0,0.75798929]
[1758023429233,0.36817198,115520.0,115510.0,0.75798929]
[1758023429652,0.36717198,115520.0,115510.0,0.75798929]
[1758023429861,0.54130217,115520.0,115510.0,0.61354929]
[1758023430040,0.62781859,115520.0,115510.0,0.40432159]
[1758023431703,0.65599859,115520.0,115510.0,0.40432159]
[1758023432741,1.00966629,115520.0,115510.0,0.25988159]
[1758023432936,1.00966629,115520.0,115510.0,0.08673641]
[1758023433149,1.00966629,115520.0,115510.0,0.40432159]
[1758023434187,0.65599859,115520.0,115510.0,0.40432159]
[1758023434584,0.65599859,115520.0,115510.0,0.25988159]
[1758023434838,0.65599859,115520.0,115510.0,0.40432159]
[1758023439412,0.4828684,115520.0,115510.0,0.40432159]
[1758023439582,0.56948217,115520.0,115510.0,0.40432159]
[1758023442508,0.92314987,115520.0,115510.0,0.40432159]
[1758023442724,0.92314987,115520.0,115510.0,0.08673641]
[1758023442946,0.92314987,115520.0,115510.0,0.23117641]
[1758023443171,0.92314987,115520.0,115510.0,0.40432159]
[1758023443386,1.00966629,115520.0,115510.0,0.40432159]
[1758023444066,1.00966629,115520.0,115510.0,0.23117641]
[1758023444524,1.00966629,115520.0,115510.0,0.40432159]
[1758023445163,1.00966629,115520.0,115510.0,0.23117641]
[1758023445375,1.00966629,115520.0,115510.0,0.40432159]
[1758023445586,0.65599859,115520.0,115510.0,0.40432159]
[1758023445829,1.00966629,115520.0,115510.0,0.40432159]
[1758023447344,1.00966629,115520.0,115510.0,0.23117641]
[1758023447548,1.00966629,115520.0,115510.0,0.40432159]
[1758023450050,1.00966629,115520.0,115510.0,0.17340258]
[1758023450265,1.00966629,115520.0,115510.0,0.31784258]
[1758023450766,0.65599859,115520.0,115510.0,0.31784258]
[1758023451000,1.00966629,115520.0,115510.0,0.31784258]
[1758023451225,0.4828684,115520.0,115510.0,0.31784258]
[1758023451456,0.39635198,115520.0,115510.0,0.31987258]
[1758023451673,0.36817198,115520.0,115510.0,0.67663028]
[1758023452108,0.36817198,115520.0,115510.0,0.67905028]
[1758023452779,0.36817198,115520.0,115510.0,0.76552929]
[1758023453132,0.02817198,115520.0,115510.0,0.76310929]
[1758023453352,0.00214726,115520.0,115510.0,0.76552929]
[1758023454208,0.00214726,115520.0,115510.0,0.76562929]
[1758023454778,0.00214726,115520.0,115510.0,0.62118929]
[1758023455004,0.00214726,115520.0,115510.0,0.76320929]
[1758023455210,0.00214726,115520.0,115510.0,0.76562929]
[1758023456885,0.00214726,115520.0,115510.0,0.62118929]
[1758023457100,0.00410726,115520.0,115510.0,0.76011929]
[1758023457364,0.00410726,115520.0,115510.0,0.61567929]
[1758023457564,0.00410726,115520.0,115510.0,0.76304929]
[1758023458113,0.02729726,115520.0,115510.0,0.76304929]
[1758023458303,0.02729726,115520.0,115510.0,0.61860929]
[1758023458535,0.02533726,115520.0,115510.0,0.61860929]
[1758023458741,0.02533726,115520.0,115510.0,0.76304929]
[1758023459337,0.06225219,115520.0,115510.0,0.26201159]
[1758023459539,0.08865219,115520.0,115510.0,0.76011929]
[1758023460394,0.09706991,115520.0,115510.0,0.25998159]
[1758023460602,0.09706991,115520.0,115510.0,0.40442159]
[1758023461244,0.09706991,115520.0,115510.0,0.40648159]
[1758023461396,0.09706991,115520.0,115510.0,0.76014929]
[1758023461842,0.03677772,115520.0,115510.0,0.76014929]
[1758023462047,0.03356772,115520.0,115510.0,0.40648159]
[1758023462220,0.03366772,115520.0,115510.0,0.76014929]
[1758023463339,0.0001,115520.0,115510.0,0.76307929]
[1758023463558,0.0001,115520.0,115510.0,0.76549929]
[1758023463779,0.0001,115520.0,115510.0,0.76307929]
[1758023466647,0.0001,115520.0,115510.0,0.40941159]
[1758023466854,0.0001,115520.0,115510.0,0.76307929]
[1758023468124,0.00206,115520.0,115510.0,0.26204159]
[1758023468331,0.02541,115520.0,115510.0,0.76010929]
[1758023468758,0.02541,115520.0,115510.0,0.61570929]
[1758023468989,0.02541,115520.0,115510.0,0.76010929]
[1758023469209,0.02541,115520.0,115510.0,0.61570929]
[1758023469391,0.02541,115520.0,115510.0,0.76010929]
[1758023470335,0.09195697,115520.0,115510.0,0.76010929]
[1758023470516,0.09493697,115520.0,115510.0,0.76010929]
[1758023470767,0.12095868,115520.0,115510.0,0.76010929]
[1758023470949,0.12095868,115520.0,115510.0,0.61570929]
[1758023471175,0.12095868,115520.0,115510.0,0.75804929]
[1758023472000,0.12095868,115520.0,115510.0,0.76019929]
[1758023473765,0.12095868,115520.0,115510.0,0.40653159]
[1758023474173,0.11797868,115520.0,115510.0,0.40653159]
[1758023476230,0.12095868,115520.0,115510.0,0.40438159]
[1758023476689,0.12095868,115520.0,115510.0,0.25998159]
[1758023476935,0.12095868,115520.0,115510.0,0.40438159]
[1758023477661,0.12095868,115520.0,115510.0,0.31790258]
[1758023478957,0.12095868,115520.0,115510.0,0.32005258]
[1758023479473,0.11797868,115520.0,115510.0,0.32005258]
[1758023479685,0.05984943,115520.0,115510.0,0.32005258]
[1758023481469,0.05984943,115520.0,115510.0,0.32329258]
[1758023482345,0.02612171,115520.0,115510.0,0.63766326]
[1758023482572,0.02612171,115520.0,115510.0,0.64008326]
[1758023483142,0.02612171,115520.0,115510.0,0.72656227]
[1758023483575,0.02612171,115520.0,115510.0,0.72414227]
[1758023484015,0.02612171,115520.0,115510.0,0.72656227]
[1758023484793,0.02612171,115520.0,115510.0,0.72414227]
[1758023487775,0.02612171,115520.0,115510.0,0.72656227]
[1758023492375,0.0001,115520.0,115510.0,0.72656227]
[1758023493646,0.0001,115520.0,115510.0,0.72756227]
[1758023495691,0.0001,115520.0,115510.0,0.26637159]
[1758023495918,0.0001,115520.0,115510.0,0.72210227]
[1758023496125,0.0001,115520.0,115510.0,0.72534227]
[1758023496542,0.0001,115520.0,115510.0,0.72776227]
[1758023497878,0.0001,115520.0,115510.0,0.72534227]
[1758023499805,0.0001,115520.0,115510.0,0.41097159]
[1758023500222,0.0001,115520.0,115510.0,0.26637159]
[1758023500406,0.0001,115520.0,115510.0,0.41097159]
[1758023500823,0.0001,115520.0,115510.0,0.72534227]
[1758023501470,0.0001,115520.0,115510.0,0.72776227]
[1758023505243,0.0001,115520.0,115510.0,0.41339159]
[1758023505412,0.0001,115520.0,115510.0,0.41097159]
[1758023505659,0.0001,115520.0,115510.0,0.72534227]
[1758023505867,0.0001,115520.0,115510.0,0.72530227]
[1758023508561,0.0001,115520.0,115510.0,0.72526227]
[1758023511017,0.0001,115520.0,115510.0,0.72768227]
[1758023511873,0.0001,115520.0,115510.0,0.41331159]
[1758023512074,0.0001,115520.0,115510.0,0.72768227]
[1758023519279,0.0001,115520.0,115510.0,0.41331159]
[1758023519495,0.0001,115520.0,115510.0,0.72526227]
[1758023520543,0.0001,115520.0,115510.0,0.41089159]
[1758023520750,0.0001,115520.0,115510.0,0.72526227]
[1758023522525,0.0001,115520.0,115510.0,0.79182227]
[1758023525221,0.0001,115520.0,115510.0,0.79424227]
[1758023528643,0.0001,115520.0,115510.0,0.47987159]
[1758023528844,0.0001,115520.0,115510.0,0.79424227]
[1758023533075,0.0001,115520.0,115510.0,0.33293159]
[1758023533256,0.0001,115520.0,115510.0,0.79182227]
[1758023533530,0.0001,115520.0,115510.0,0.78858227]
[1758023533950,0.0001,115520.0,115510.0,0.79171227]
[1758023534211,0.02478,115520.0,115510.0,0.79171227]
[1758023534448,0.03011,115520.0,115510.0,0.47210159]
[1758023534894,0.03011,115520.0,115510.0,0.78850227]
[1758023535929,0.03011,115520.0,115510.0,0.82776388]
[1758023536146,0.05612909,115520.0,115510.0,0.82776388]
[1758023536368,0.05294909,115520.0,115510.0,0.82776388]
[1758023541262,0.40658138,115520.0,115510.0,0.47413159]
[1758023541690,0.40658138,115520.0,115510.0,0.47726159]
[1758023542054,0.05294909,115520.0,115510.0,0.47726159]
[1758023542261,0.40658138,115520.0,115510.0,0.47726159]
[1758023542647,0.05294909,115520.0,115510.0,0.47726159]
[1758023544158,0.05294909,115520.0,115510.0,0.47413159]
[1758023548064,0.05294909,115520.0,115510.0,0.47726159]
[1758023551126,0.05294909,115520.0,115510.0,0.47413159]
[1758023551588,0.45916524,115520.0,115510.0,0.32754159]
[1758023551806,0.45074752,115520.0,115510.0,0.47202159]
[1758023552838,0.45074752,115520.0,115510.0,0.47102159]
[1758023553042,0.45174752,115520.0,115510.0,0.47102159]
[1758023553246,0.45274752,115520.0,115510.0,0.47102159]
[1758023554743,0.45274752,115520.0,115510.0,0.38454258]
[1758023556083,0.62587771,115520.0,115510.0,0.38454258]
[1758023556307,0.96587771,115520.0,115510.0,0.0669174]
[1758023556525,0.96587771,115520.0,115510.0,0.2113974]
[1758023557631,0.96587771,115520.0,115510.0,0.2112974]
[1758023558726,0.96587771,115520.0,115510.0,0.1447374]
[1758023561552,0.96587771,115520.0,115510.0,0.31788258]
[1758023569920,0.61224542,115520.0,115510.0,0.31788258]
[1758023570100,0.96587771,115520.0,115510.0,0.31788258]
[1758023571476,0.75176138,115520.0,115510.0,0.31788258]
[1758023572772,0.72390138,115520.0,115510.0,0.32002258]
[1758023572988,0.72175138,115520.0,115510.0,0.32311258]
[1758023573405,0.92173157,115520.0,115510.0,0.32002258]
[1758023573619,1.00824799,115520.0,115510.0,0.32002258]
[1758023574177,1.01132799,115520.0,115510.0,0.32002258]
[1758023574689,0.92481157,115520.0,115510.0,0.32002258]
[1758023575591,0.92173157,115520.0,115510.0,0.32002258]
[1758023575824,0.92481157,115520.0,115510.0,0.32002258]
[1758023577048,0.92481157,115520.0,115510.0,0.31788258]
[1758023581421,0.89704157,115520.0,115510.0,0.32278258]
[1758023581907,0.95381998,115520.0,115510.0,0.32278258]
[1758023582687,0.95381998,115520.0,115510.0,0.31983258]
[1758023583613,0.92044157,115520.0,115510.0,0.31983258]
[1758023584636,0.92367157,115520.0,115510.0,0.31983258]